fUSD/lending_fUSD_20240902
["ID","MTS","AMOUNT","RATE_DAILY","PERIOD"]
[336935833,1725251335504,-150.75,0.0001999,2]
[336935834,1725251335713,-150.75,0.0001999,2]
[336935835,1725251335742,-150.75,0.0001999,2]
[336935836,1725251335769,-13.37240807,0.0001999,2]
[336935838,1725251363758,155.84,0.00010959,2]
[336935840,1725251409372,-300.0,0.00019725,2]
[336935849,1725251432261,-150.5,0.0001999,30]
[336935850,1725251432270,-150.5,0.0001999,30]
[336935851,1725251432279,-984.09495946,0.0001999,3]
[336935857,1725251438171,-1116.50326628,0.0001999,3]
[336935858,1725251438282,-484.43905378,0.0001999,3]
[336935859,1725251438293,-14380.259362,0.0001999,3]
[336935860,1725251438394,-999.05767994,0.0001999,3]
[336935861,1725251438503,-2200.0,0.0001999,3]
[336936026,1725251440183,-815.84007685,0.0001999,3]
[336936032,1725251440242,-2440.207314,0.0001999,3]
[336936034,1725251440253,-1442.41603761,0.0001999,3]
[336936040,1725251440298,-291.88343201,0.0001999,3]
[336936042,1725251440310,-3470.18292958,0.0001999,3]
[336936044,1725251440321,-5568.99582229,0.0001999,3]
[336936054,1725251440411,-500.0,0.0001999,3]
[336936330,1725251443121,-686.66128685,0.0001999,3]
[336936343,1725251443232,-344571.11683857,0.0001999,3]
[336936368,1725251443458,-401.47892665,0.0001999,3]
[336936612,1725251446193,-1143.40519,0.0001999,3]
[336936615,1725251446206,-1143.40519,0.0001999,3]
[336936664,1725251446682,-480.34,0.0001999,3]
[336936666,1725251446693,-285.56665977,0.0001999,3]
[336936671,1725251446722,-608.35712949,0.0001999,3]
[336936673,1725251446733,-1580.93002408,0.0001999,3]
[336937323,1725251757774,198.16210228,0.00027,120]
[336937324,1725251807438,182.81,0.00025248,120]
[336937326,1725252042371,22033.27718853,0.0001299,5]
[336937327,1725252168728,1000.0,0.000267,120]
[336937328,1725252351660,550.0,0.00011,2]
[336937329,1725252352764,600.0,0.00013,2]
[336937338,1725252426656,168.34,0.00026426,120]
[336937353,1725252632268,-280.44,0.00018054,2]
[336937354,1725252632278,-84.62759219,0.00019783,2]
[336937355,1725252632319,-130.28240781,0.00019783,2]
[336937356,1725252632328,-168.34,0.00019819,2]
[336937357,1725252632337,-478.04335161,0.000199,2]
[336937358,1725252632346,-106.15430262,0.00019948,2]
[336937359,1725252632375,-693.84569738,0.00019948,2]
[336937360,1725252632384,-55.01488159,0.0001999,3]
[336937361,1725252632434,-119.98511841,0.0001999,3]
[336937362,1725252632443,-1190.67354,0.0001999,2]
[336937363,1725252632452,-4525.40617264,0.0001999,3]
[336937364,1725252632463,-160063.75223079,0.0001999,3]
[336937365,1725252632474,-295.44814184,0.0001999,3]
[336937366,1725252632485,-14462.23130978,0.0001999,3]
[336937367,1725252632499,-968.61574791,0.0001999,3]
[336937372,1725252638500,-695.60287822,0.0001999,3]
[336937373,1725252638512,-490.5073208,0.0001999,3]
[336937374,1725252638666,-3733.51914188,0.0001999,3]
[336937375,1725252638677,-25498.52435851,0.0001999,3]
[336937526,1725252640319,-607.64675005,0.0001999,3]
[336937533,1725252640375,-1197.15,0.0001999,3]
[336937541,1725252640433,-500.0,0.0001999,3]
[336937543,1725252640443,-5937.42980761,0.0001999,3]
[336937545,1725252640454,-6502.84905691,0.0001999,3]
[336937547,1725252640465,-9599.89447516,0.0001999,3]
[336937557,1725252640541,-548.10622179,0.0001999,3]
[336937559,1725252640552,-495.98082769,0.0001999,3]
[336937561,1725252640566,-1424.0,0.0001999,3]
[336937563,1725252640577,-276.91061512,0.0001999,3]
[336937565,1725252640587,-1003.50055156,0.0001999,3]
[336937567,1725252640599,-1819.20996264,0.0001999,3]
[336937569,1725252640614,-3730.46532221,0.0001999,3]
[336937572,1725252640641,-7971.90000001,0.0001999,3]
[336937575,1725252640653,-4564.99427688,0.0001999,3]
[336937577,1725252640664,-419.77238971,0.0001999,3]
[336937579,1725252640675,-1656.58520388,0.0001999,3]
[336937581,1725252640687,-8310.90522579,0.0001999,3]
[336937584,1725252640701,-1216.15843688,0.0001999,3]
[336938126,1725252646246,-258.40425966,0.0001999,3]
[336938133,1725252646303,-1058.70623904,0.0001999,3]
[336938135,1725252646314,-580.59172386,0.0001999,3]
[336938142,1725252646364,-1367.99179144,0.0001999,3]
[336938149,1725252646422,-573.27155235,0.0001999,3]
[336938156,1725252646480,-276.345,0.0001999,3]
[336939057,1725252950273,259.54,0.00024918,120]
[336939059,1725253178299,1399.439,0.00024918,120]
[336939060,1725253217644,1261.88,0.00024918,120]
[336939061,1725253454499,156.29,0.00025787,120]
[336939064,1725253595258,-266.41,0.00017448,2]
[336939065,1725253595278,-1625.92,0.00018146,2]
[336939066,1725253595298,-1000.0,0.00019262,2]
[336939067,1725253595319,-156.29,0.00019341,2]
[336939068,1725253595339,-194.78,0.00019431,2]
[336939069,1725253595360,-250.0,0.00019553,2]
[336939070,1725253595384,-250.0,0.00019637,2]
[336939071,1725253595406,-266.41,0.00019712,2]
[336939072,1725253595429,-300.0,0.00019725,2]
[336939073,1725253595451,-159.34778387,0.000199,2]
[336939074,1725253595472,-259.54,0.00019934,2]
[336939075,1725253595492,-450.0,0.00019979,2]
[336939076,1725253595511,-1625.92,0.0001998,2]
[336939077,1725253595530,-1625.92,0.0001998,2]
[336939078,1725253595550,-1625.92,0.0001998,2]
[336939079,1725253595570,-1625.92,0.0001998,2]
[336939080,1725253595591,-1625.92,0.0001998,2]
[336939081,1725253595611,-1625.92,0.0001998,2]
[336939082,1725253595633,-1625.92,0.0001998,2]
[336939083,1725253595654,-1625.92,0.0001998,2]
[336939084,1725253595674,-1625.92,0.0001998,2]
[336939085,1725253595696,-150.21,0.0001999,2]
[336939086,1725253595718,-37.81221613,0.0001999,2]
[336939087,1725253596239,-112.39778387,0.0001999,2]
[336939088,1725253596261,-150.21,0.0001999,2]
[336939089,1725253596282,-150.21,0.0001999,2]
[336939090,1725253596303,-150.21,0.0001999,2]
[336939091,1725253596323,-150.21,0.0001999,2]
[336939092,1725253596344,-150.21,0.0001999,2]
[336939093,1725253596365,-150.21,0.0001999,2]
[336939094,1725253596385,-150.21,0.0001999,2]
[336939095,1725253596406,-150.21,0.0001999,2]
[336939096,1725253596426,-150.21,0.0001999,2]
[336939097,1725253596451,-150.21,0.0001999,2]
[336939098,1725253596472,-150.21,0.0001999,2]
[336939099,1725253596493,-150.21,0.0001999,2]
[336939100,1725253596517,-150.21,0.0001999,2]
[336939101,1725253596537,-150.21,0.0001999,2]
[336939102,1725253596558,-150.21,0.0001999,2]
[336939103,1725253596579,-150.21,0.0001999,2]
[336939104,1725253596599,-150.21,0.0001999,2]
[336939105,1725253596620,-17334.03221613,0.0001999,3]
[336939106,1725253597761,-20000.0,0.0001999,3]
[336939107,1725253598633,-20000.0,0.0001999,3]
[336939108,1725253599381,-20000.0,0.0001999,3]
[336939109,1725253600106,-16151.77910787,0.0001999,3]
[336939110,1725253600126,-992.22795,0.0001999,2]
[336939111,1725253600146,-790.44307585,0.00019997,2]
[336939112,1725253600168,-2065.54986628,0.0002,2]
[336939113,1725253600834,-14828.16778199,0.0002,2]
[336939114,1725253600856,-5171.83221801,0.0002,2]
[336939115,1725253601602,-228.16778199,0.0002,2]
[336939116,1725253601624,-19771.83221801,0.0002,15]
[336939117,1725253602908,-20000.0,0.0002,15]
[336939118,1725253603689,-20000.0,0.0002,15]
[336939119,1725253611172,-17932.0,0.0002,15]
[336939120,1725253621539,155.35,0.00010959,2]
[336939125,1725253768824,532.01,0.00027,120]
[336939126,1725253777740,532.01,0.00027,120]
[336939127,1725253786940,532.01,0.00027,120]
[336939132,1725253797260,532.01,0.00027,120]
[336939137,1725253814317,532.01,0.00027,120]
[336939138,1725253822437,532.01,0.00027,120]
[336939145,1725253831472,-154.47,0.00019715,2]
[336939146,1725253831482,-300.0,0.00019725,2]
[336939147,1725253831491,-90.10707993,0.0001998,2]
[336939148,1725253831502,-64.36292007,0.0001998,2]
[336939149,1725253831512,-154.47,0.0001998,2]
[336939150,1725253831521,-154.47,0.0001998,2]
[336939151,1725253831530,-45.23715666,0.0001998,2]
[336939152,1725253831541,-109.23284334,0.0001998,2]
[336939153,1725253831550,-154.47,0.0001998,2]
[336939154,1725253831559,-154.47,0.0001998,2]
[336939155,1725253831568,-423.03210488,0.0001999,3]
[336939156,1725253831583,-12956.23460994,0.0001999,3]
[336939157,1725253831594,-3847.39468868,0.0001999,3]
[336939158,1725253831603,-157202.0727043,0.0001999,3]
[336939159,1725253831614,-334.56848404,0.0001999,3]
[336939160,1725253831627,-811.05669613,0.0001999,3]
[336939162,1725253831650,-256.0,0.0001999,3]
[336939165,1725253832174,532.01,0.00027,120]
[336939167,1725253837548,-1301.775,0.0001999,3]
[336939168,1725253837874,-517.15912167,0.0001999,3]
[336939301,1725253839387,532.01,0.00027,120]
[336939309,1725253839461,-1444.38698914,0.0001999,3]
[336939333,1725253839679,-772.21245155,0.0001999,3]
[336939335,1725253839690,-383.79849511,0.0001999,3]
[336939343,1725253839755,-7756.47803116,0.0001999,3]
[336939345,1725253839765,-257.1371876,0.0001999,3]
[336939398,1725253840290,-26.3929621,0.0001999,3]
[336939668,1725253843006,-10083.96944621,0.0001999,3]
[336939669,1725253843021,-8403.42609273,0.0001999,3]
[336940325,1725253854738,532.01,0.00027,120]
[336940326,1725253896877,532.01,0.00025,60]
[336940327,1725253905112,532.01,0.00025,60]
[336940328,1725253912449,532.01,0.00025,60]
[336940329,1725253919547,532.01,0.00025,60]
[336940330,1725253925583,532.01,0.00025,60]
[336940331,1725253932613,532.01,0.00025,60]
[336940332,1725253942731,532.01,0.00025,60]
[336940333,1725253969310,532.01,0.00025,60]
[336940334,1725253982057,190.7,0.00024891,120]
[336940335,1725253982107,532.01,0.00025,60]
[336940336,1725253996364,532.01,0.00025,60]
[336940337,1725254006428,500.0,0.00027,120]
[336940338,1725254056991,532.01,0.00025,60]
[336940339,1725254066462,532.01,0.00025,60]
[336940340,1725254074631,532.01,0.00025,60]
[336940341,1725254085495,532.01,0.00025,60]
[336940342,1725254092993,532.01,0.00025,60]
[336940343,1725254099581,532.01,0.00025,60]
[336940344,1725254107972,998.68,0.00025,60]
[336940345,1725254115667,532.01,0.00027,120]
[336940346,1725254122277,532.01,0.00027,120]
[336940347,1725254128332,532.01,0.00027,120]
[336940348,1725254135779,532.01,0.00027,120]
[336940349,1725254142855,173.94,0.00027,120]
[336940350,1725254150016,532.01,0.00027,120]
[336940351,1725254155141,550.0,0.00011,2]
[336940352,1725254156220,600.0,0.00013,2]
[336940354,1725254280116,155.85,0.00010959,2]
[336940358,1725254528774,261.2,0.00026076,120]
[336940390,1725254911452,-239.76,0.00017072,2]
[336940391,1725254911735,-300.0,0.00018856,2]
[336940392,1725254911761,-250.0,0.00018857,2]
[336940393,1725254911790,-3987.58552924,0.00018857,2]
[336940394,1725254911822,-4777.34552924,0.00018857,2]
[336940395,1725254911880,-4777.34552924,0.00018857,2]
[336940396,1725254911913,-4777.34552924,0.00018857,2]
[336940400,1725254989102,155.0,0.00013,2]
[336940401,1725255003087,1209.0,0.00010959,2]
[336940409,1725255031638,-1193.2094491,0.00018857,2]
[336940410,1725255031698,-2085.30665976,0.00018857,2]
[336940411,1725255031758,-2291.86177418,0.00018857,2]
[336940412,1725255031767,-154.85,0.00018904,2]
[336940413,1725255031777,-4201.53,0.00018922,2]
[336940414,1725255031786,-2751.0,0.00018954,2]
[336940415,1725255031795,-261.2,0.00018965,2]
[336940416,1725255031804,-123.686643,0.00019024,2]
[336940417,1725255031826,-88.313357,0.00019024,2]
[336940418,1725255031835,-1000.0,0.00019164,2]
[336940419,1725255031844,-299.99,0.00019336,4]
[336940420,1725255031853,-1498.381027,0.00019336,2]
[336940421,1725255031864,-1729.368973,0.00019336,2]
[336940422,1725255031873,-67.19955433,0.00019336,2]
[336940426,1725255037671,-3877.19044567,0.00019336,2]
[336940427,1725255037681,-239.76,0.00019336,2]
[336940428,1725255037691,-348.55427914,0.00019398,2]
[336940429,1725255037894,-1283.88804122,0.00019398,2]
[336940430,1725255037954,-1372.54967964,0.00019398,2]
[336940431,1725255037964,-150.99,0.00019398,2]
[336940432,1725255037974,-532.01,0.00019644,2]
[336940433,1725255037986,-532.01,0.00019644,2]
[336940434,1725255037995,-532.01,0.00019644,2]
[336940435,1725255038006,-532.01,0.00019644,2]
[336940436,1725255038015,-532.01,0.00019644,2]
[336940437,1725255038024,-532.01,0.00019644,2]
[336940438,1725255038033,-532.01,0.00019644,2]
[336940439,1725255038042,-532.01,0.00019644,2]
[336940440,1725255038051,-532.01,0.00019644,2]
[336940441,1725255038060,-532.01,0.00019644,2]
[336940442,1725255038069,-532.01,0.00019644,2]
[336940443,1725255038079,-532.01,0.00019644,2]
[336940444,1725255038088,-532.01,0.00019644,2]
[336940445,1725255038097,-532.01,0.00019644,2]
[336940446,1725255038106,-532.01,0.000197,2]
[336940447,1725255038115,-532.01,0.000197,2]
[336940448,1725255038125,-1512.61205008,0.00019716,2]
[336940449,1725255038134,-499.99,0.00019726,2]
[336940450,1725255038143,-532.01,0.000198,2]
[336940451,1725255038152,-190.7,0.00019913,2]
[336940452,1725255038161,-155.0,0.00019969,2]
[336940453,1725255038170,-329328.661214,0.0001999,3]
[336940455,1725255038179,-191.35414928,0.00019997,2]
[336940457,1725255038189,-500.0,0.00019999,2]
[336940459,1725255038197,-211.15575614,0.00019999,2]
[336940461,1725255038206,-500.0,0.00019999,2]
[336940463,1725255038215,-186.34067264,0.00019999,2]
[336940464,1725255038224,-500.0,0.00019999,2]
[336940466,1725255038233,-193.36671396,0.00019999,2]
[336940468,1725255038242,-443.78099672,0.00019999,2]
[336940470,1725255038252,-151.65648708,0.00019999,2]
[336940472,1725255038261,-2145.55058441,0.00019999,2]
[336940474,1725255038270,-59097.9676619,0.00019999,2]
[336940476,1725255038279,-189.7123785,0.00019999,2]
[336940478,1725255038289,-2399.6117927,0.00019999,2]
[336940480,1725255038298,-1962.209062,0.00019999,2]
[336940482,1725255038308,-3069.8104446,0.00019999,2]
[336940508,1725255038558,-11502.0729875,0.00019999,2]
[336940510,1725255038569,-8604.99124097,0.0002,2]
[336940512,1725255038580,-3148102.77645225,0.0002,15]
[336940623,1725255039639,-76785.75999841,0.0002,15]
[336940625,1725255039651,-60572.97796053,0.0002,15]
[336940627,1725255039662,-7416.99925658,0.0002,15]
[336940928,1725255042655,-1283.09584029,0.0002,15]
[336940930,1725255042668,-692.93001474,0.0002,15]
[336940962,1725255042989,-872.2692784,0.0002,15]
[336941272,1725255046350,205.14,0.00025654,120]
[336941686,1725255958721,405.17,0.00011,2]
[336941687,1725255958750,144.83,0.00011,2]
[336941688,1725255959828,600.0,0.00013,2]
[336941702,1725256231730,-215.78,0.00017152,2]
[336941703,1725256231740,-248.93,0.0001892,2]
[336941704,1725256231749,-3300.50630186,0.00018939,2]
[336941705,1725256231845,-1351.87369814,0.00018939,2]
[336941706,1725256231856,-250.0,0.00018994,2]
[336941707,1725256231865,-197.92,0.00019119,2]
[336941708,1725256231874,-1000.0,0.00019119,2]
[336941709,1725256231883,-889.1463,0.00019133,2]
[336941710,1725256231893,-150.0,0.00019232,2]
[336941711,1725256231902,-532.01,0.000193,2]
[336941712,1725256231911,-215.78,0.00019416,2]
[336941713,1725256231920,-150.112587,0.00019452,2]
[336941714,1725256231929,-532.01,0.000195,2]
[336941715,1725256231939,-294.04,0.000195,7]
[336941716,1725256231949,-2523.82416253,0.00019872,2]
[336941717,1725256231958,-161.90228253,0.00019899,2]
[336941718,1725256231967,-161.90228253,0.00019899,2]
[336941719,1725256231976,-161.90228253,0.00019899,2]
[336941720,1725256231986,-161.90228253,0.000199,2]
[336941721,1725256231995,-161.90228253,0.000199,2]
[336941722,1725256232004,-161.90228253,0.000199,2]
[336941723,1725256232013,-176.7625708,0.000199,2]
[336941725,1725256232026,-150.0,0.000199,2]
[336941726,1725256232035,-161.90228253,0.000199,2]
[336941728,1725256232044,-5071.42400405,0.0001999,3]
[336941729,1725256232063,-641.02,0.0001999,3]
[336941730,1725256232074,-1107.47136403,0.0001999,3]
[336941737,1725256237825,-12324.53660004,0.0001999,3]
[336941738,1725256237995,-1280.80000019,0.0001999,3]
[336941739,1725256238102,-272366.94683169,0.0001999,3]
[336941740,1725256238112,-416.88568951,0.00019999,2]
[336941741,1725256238122,-10615.5339716,0.00019999,2]
[336941742,1725256238132,-7498.4902999,0.00019999,2]
[336941743,1725256238143,-1867.4578758,0.00019999,2]
[336941744,1725256238153,-83792.2802676,0.00019999,2]
[336941745,1725256238164,-17965.4403623,0.00019999,2]
[336941746,1725256238175,-960.0,0.0002,2]
[336941747,1725256238185,-105222.92130084,0.0002,15]
[336941906,1725256239960,-160.42011075,0.00019999,2]
[336941908,1725256239969,-4302.49562048,0.0002,2]
[336941910,1725256239979,-856.62902178,0.0002,15]
[336941926,1725256240129,-485.08599129,0.0002,15]
[336942187,1725256242794,-1068.67773715,0.0002,15]
[336942195,1725256242867,-1272.68926437,0.0002,15]
[336942247,1725256243329,-2284.76889982,0.0002,15]
[336942676,1725256283606,196.3,0.00025504,120]
[336942679,1725256371545,155.47,0.00010959,2]
[336942681,1725256793009,203.37,0.00026198,120]
[336942682,1725257021243,155.83,0.00010959,2]
[336942694,1725257394918,324.7853987,0.00027,120]
[336942697,1725257431920,-194.2,0.00017224,2]
[336942698,1725257431930,-203.37,0.00019053,2]
[336942699,1725257431939,-102.81894857,0.00019081,2]
[336942705,1725257438017,-147.18105143,0.00019081,2]
[336942707,1725257438027,-955.56854857,0.00019088,2]
[336942708,1725257438091,-44.43145143,0.00019088,2]
[336942709,1725257438099,-248.93,0.00019088,2]
[336942710,1725257438108,-250.0,0.00019102,2]
[336942711,1725257438118,-430.22,0.00019158,2]
[336942712,1725257438127,-144.34027066,0.00019384,2]
[336942713,1725257438165,-746.17972934,0.00019384,2]
[336942714,1725257438178,-499.99,0.00019384,2]
[336942715,1725257438187,-194.2,0.00019487,2]
[336942716,1725257438196,-380.86,0.00019716,3]
[336942717,1725257438206,-190.43,0.00019716,3]
[336942718,1725257438216,-188.3986,0.0001989,2]
[336942719,1725257438225,-549.92625287,0.0001989,2]
[336942720,1725257438249,-1950.07374713,0.0001989,2]
[336942721,1725257438258,-571.3,0.0001998,3]
[336942722,1725257438267,-150.0,0.00019989,2]
[336942723,1725257438276,-1227.76289592,0.0001999,3]
[336942724,1725257438285,-254476.182661,0.0001999,3]
[336942725,1725257438295,-1679.30154536,0.00019999,2]
[336942726,1725257438305,-268.04146023,0.00019999,2]
[336942727,1725257438314,-500.0,0.00019999,2]
[336942728,1725257438323,-558.62652407,0.00019999,2]
[336942729,1725257438332,-500.0,0.00019999,2]
[336942730,1725257438341,-180.12905438,0.00019999,2]
[336942731,1725257438350,-820.0,0.0002,2]
[336942732,1725257438359,-52151.24781024,0.0002,2]
[336942733,1725257438368,-244026.48147762,0.0002,15]
[336942898,1725257439995,-3257.921871,0.0002,15]
[336942900,1725257440007,-302.0,0.0002,15]
[336942903,1725257440018,-896.82497611,0.0002,15]
[336942972,1725257440658,-383.57266039,0.0002,15]
[336942974,1725257440669,-5441.758176,0.0002,15]
[336942976,1725257440681,-264.4956,0.0002,15]
[336942978,1725257440692,-1221.18105363,0.0002,15]
[336942982,1725257440715,-867.74640596,0.0002,15]
[336942984,1725257440727,-1146.80056203,0.0002,15]
[336942986,1725257440738,-1950.58610927,0.0002,15]
[336942989,1725257440752,-574.96549584,0.0002,15]
[336943008,1725257440923,-5710.92040879,0.0002,15]
[336943011,1725257440945,-1467.29741007,0.0002,15]
[336943239,1725257443221,-104720.71507152,0.0002,15]
[336943523,1725257446084,-415.26,0.0002,15]
[336943531,1725257446163,-5803.0,0.0002,15]
[336943547,1725257446314,-14255.07571435,0.0002,15]
[336943969,1725257542016,168.74,0.00013699,2]
[336943971,1725257603417,2000.0,0.00027,120]
[336943972,1725257660020,151.17,0.00025909,120]
[336943973,1725257762244,550.0,0.00011,2]
[336943974,1725257763362,600.0,0.00013,2]
[336943976,1725258028992,168.62,0.00013699,2]
[336943977,1725258145580,294.15884645,0.00014,4]
[336943978,1725258202651,2000.0,0.00027,120]
[336943986,1725258268045,187.27,0.00024862,120]
[336943987,1725258308501,11220.16887199,0.0001099,2]
[336943988,1725258308530,5163.1691408,0.0001099,2]
[336943989,1725258308558,5163.1691408,0.0001099,2]
[336943990,1725258308589,4052.96981066,0.0001099,2]
[336943999,1725258346122,196.52262912,0.00012993,2]
[336944005,1725258427356,527.85308946,0.0001298,2]
[336944006,1725258427383,4920.80030541,0.0001298,2]
[336944007,1725258427411,5163.1691408,0.0001298,2]
[336944008,1725258427438,551.25876404,0.0001298,2]
[336944020,1725258454840,1013.26165692,0.0001099,2]
[336944021,1725258478657,1675.73653097,0.00013,2]
[336944022,1725258478686,2949.16946803,0.00013,2]
[336944023,1725258478716,4237.58552924,0.00013,2]
[336944024,1725258478743,99174.8,0.00013,2]
[336944025,1725258478774,146269.59121147,0.00013,2]
[336944027,1725258511588,2658.11309835,0.00010998,2]
[336944028,1725258511614,287.73289613,0.00010998,2]
[336944044,1725258576164,376.45,0.00010959,2]
[336944046,1725258586703,313.71,0.00010959,2]
[336944100,1725258597260,261.42,0.00010959,2]
[336944101,1725258607785,44.38710387,0.00010959,2]
[336944102,1725258607809,173.46289613,0.00010959,2]
[336944154,1725258618381,150.0,0.00010959,2]
[336944155,1725258618404,31.54,0.00010959,2]
[336944156,1725258629146,150.0,0.00010959,2]
[336944157,1725258629168,1.29,0.00010959,2]
[336944174,1725258632238,-163.34208779,0.00012997,2]
[336944175,1725258632248,-130.81675866,0.00012999,2]
[336944177,1725258638169,-47.74075154,0.00012999,2]
[336944178,1725258638178,-500.0,0.00012999,2]
[336944179,1725258638188,-500.0,0.00012999,2]
[336944180,1725258638197,-431.434715,0.00012999,2]
[336944181,1725258638206,-150.0,0.00012999,2]
[336944182,1725258638215,-19324.67324935,0.00013,2]
[336944183,1725258638385,-1956388.01838959,0.00013,2]
[336944184,1725258638396,-296.80215133,0.00013,2]
[336944185,1725258638406,-175.78951513,0.00013,2]
[336944186,1725258638415,-168.62,0.00013699,2]
[336944187,1725258638425,-227782.876787,0.000139,2]
[336944188,1725258638439,-3147.0,0.00014999,2]
[336944189,1725258638451,-650.0,0.00015,2]
[336944190,1725258638461,-1935.49083452,0.00015,2]
[336944191,1725258638471,-89405.79766594,0.00015,2]
[336944192,1725258638482,-13507.04622227,0.000151,2]
[336944193,1725258638492,-174.78,0.00015749,2]
[336944194,1725258638503,-200.0,0.0001634,2]
[336944195,1725258638513,-5250.0,0.00016438,2]
[336944196,1725258638522,-978.41,0.00016438,2]
[336944197,1725258638532,-9999.99,0.00016438,2]
[336944198,1725258638543,-499.99,0.00016438,2]
[336944199,1725258638553,-184.83,0.00016712,2]
[336944200,1725258638566,-700.0,0.00017,2]
[336944201,1725258638575,-34170.71,0.0001768,2]
[336944203,1725258638585,-7407.14,0.00017808,2]
[336944205,1725258638595,-58713.53072406,0.000179,2]
[336944208,1725258638606,-500.0,0.00017906,2]
[336944209,1725258638615,-2751.0,0.00018006,2]
[336944212,1725258638625,-174.78,0.00018013,2]
[336944214,1725258638634,-187.27,0.00018081,2]
[336944216,1725258638643,-9684.74,0.00018081,2]
[336944218,1725258638655,-150.99,0.00018193,2]
[336944220,1725258638665,-200.0,0.00018257,2]
[336944222,1725258638675,-2338.23,0.00018257,2]
[336944224,1725258638685,-150.99,0.00018257,2]
[336944226,1725258638694,-150.99,0.00018257,2]
[336944228,1725258638705,-734.2,0.00018257,2]
[336944230,1725258638715,-260.477911,0.00018356,2]
[336944232,1725258638726,-709.41,0.00018502,2]
[336944234,1725258638735,-791.55,0.00018658,2]
[336944236,1725258638746,-167.878,0.00018658,2]
[336944239,1725258638756,-250.0,0.00018785,2]
[336944241,1725258638766,-1000.0,0.00018906,2]
[336944243,1725258638775,-750.0,0.00019,2]
[336944245,1725258638786,-847.72,0.00019041,2]
[336944247,1725258638796,-1588.89,0.00019041,2]
[336944249,1725258638808,-421.9,0.00019041,2]
[336944251,1725258638817,-421.9,0.00019041,2]
[336944253,1725258638827,-791.55,0.00019041,2]
[336944255,1725258638836,-791.55,0.00019041,2]
[336944257,1725258638845,-421.9,0.00019041,2]
[336944259,1725258638855,-421.9,0.00019041,2]
[336944260,1725258638864,-791.55,0.00019041,2]
[336944262,1725258638874,-791.55,0.00019041,2]
[336944264,1725258638884,-421.9,0.00019041,2]
[336944266,1725258638893,-791.55,0.00019041,2]
[336944268,1725258638903,-421.9,0.00019041,2]
[336944270,1725258638913,-421.9,0.00019041,2]
[336944272,1725258638927,-791.55,0.00019041,2]
[336944275,1725258638936,-1061.21,0.00019083,2]
[336944276,1725258638945,-428.79264082,0.00019178,2]
[336944278,1725258638955,-500.0,0.00019178,2]
[336944281,1725258638965,-500.0,0.00019178,2]
[336944283,1725258638975,-500.0,0.00019178,2]
[336944285,1725258638985,-500.0,0.00019178,2]
[336944287,1725258638998,-500.0,0.00019178,2]
[336944289,1725258639008,-500.0,0.00019178,2]
[336944291,1725258639018,-500.0,0.00019178,2]
[336944293,1725258639028,-390.14978728,0.00019178,2]
[336944295,1725258639041,-109.85021272,0.00019178,2]
[336944297,1725258639051,-500.0,0.00019178,2]
[336944299,1725258639062,-500.0,0.00019178,2]
[336944301,1725258639073,-223.01902528,0.00019178,2]
[336944303,1725258639085,-276.98097472,0.00019178,2]
[336944305,1725258639095,-500.0,0.00019178,2]
[336944307,1725258639105,-500.0,0.00019178,2]
[336944309,1725258639114,-500.0,0.00019178,2]
[336944311,1725258639123,-500.0,0.00019178,2]